bitfinex/quotes_SOLUSD_20250718
["timestamp","ask_amount","ask_price","bid_price","bid_amount"]
[1752868677134,0.06,176.8,176.79,8.37736949]
[1752868677602,0.06,176.8,176.79,7.66736949]
[1752868678506,0.54,176.8,176.79,7.66736949]
[1752868679202,0.06,176.8,176.79,7.66736949]
[1752868684031,0.06,176.8,176.79,14.03379802]
[1752868684217,0.06,176.8,176.79,6.03702853]
[1752868684415,0.77,176.8,176.79,0.3806]
[1752868685403,0.06,176.8,176.79,0.3806]
[1752868685601,0.06,176.8,176.79,7.66736949]
[1752868685602,0.77,176.8,176.79,7.66736949]
[1752868686020,0.06,176.8,176.79,7.66736949]
[1752868686530,0.77,176.8,176.79,7.66736949]
[1752868686835,0.77,176.8,176.79,0.3806]
[1752868687327,0.06,176.8,176.79,0.3806]
[1752868687640,35.95468397,176.8,176.79,0.3806]
[1752868690435,18.46,176.8,176.79,0.3806]
[1752868690626,19.17,176.8,176.79,0.3806]
[1752868690810,18.46,176.8,176.79,7.66736949]
[1752868691011,18.46,176.8,176.79,8.37736949]
[1752868691939,18.46,176.8,176.79,14.03379802]
[1752868692112,18.46,176.8,176.79,6.74702853]
[1752868692314,18.46,176.8,176.79,14.03379802]
[1752868692530,0.06,176.8,176.79,14.03379802]
[1752868694127,0.06,176.8,176.79,8.37736949]
[1752868694537,0.06,176.8,176.79,7.66736949]
[1752868695443,0.06,176.8,176.79,14.03379802]
[1752868697751,0.06,176.8,176.79,13.32379802]
[1752868698422,0.06,176.8,176.79,13.99379802]
[1752868700127,0.06,176.8,176.79,0.3806]
[1752868700322,0.77,176.8,176.79,0.3806]
[1752868701543,0.77,176.8,176.79,7.66736949]
[1752868701846,0.06,176.8,176.79,7.66736949]
[1752868702750,0.06,176.8,176.79,0.3806]
[1752868702946,0.77,176.8,176.79,0.3806]
[1752868703830,30.49756205,176.8,176.79,0.3806]
[1752868704032,36.71356205,176.8,176.79,0.3806]
[1752868705054,66.9295522,176.8,176.79,0.3806]
[1752868705231,33.64278271,176.8,176.79,0.3806]
[1752868705428,77.35356205,176.8,176.79,0.3806]
[1752868707052,81.56779524,176.8,176.79,0.3806]
[1752868707350,77.35356205,176.8,176.79,0.3806]
[1752868707849,81.56570062,176.8,176.79,0.3806]
[1752868708440,107.56570062,176.8,176.79,0.3806]
[1752868709342,100.27893113,176.8,176.79,0.3806]
[1752868709540,107.56570062,176.8,176.79,0.3806]
[1752868713045,107.56570062,176.8,176.78,86.74889034]
[1752868713046,16.78468397,176.79,176.78,68.72949034]
[1752868713245,28.99359203,176.79,176.78,68.72949034]
[1752868713762,213.32145346,176.79,176.78,68.72949034]
[1752868714149,217.52586306,176.79,176.78,68.72949034]
[1752868714458,213.32145346,176.79,176.78,68.72949034]
[1752868714834,28.98561217,176.79,176.78,68.72949034]
[1752868715052,65.42145346,176.79,176.78,68.72949034]
[1752868715249,71.07788199,176.79,176.78,68.72949034]
[1752868716367,75.28323231,176.79,176.78,68.72949034]
[1752868716856,71.07788199,176.79,176.78,68.72949034]
[1752868718255,109.27295134,176.79,176.78,68.72949034]
[1752868718469,109.27295134,176.79,176.78,0.03]
[1752868718676,116.55972083,176.79,176.77,0.03]
[1752868718875,96.2632923,176.78,176.77,0.03]
[1752868719672,101.91710954,176.78,176.77,0.03]
[1752868720277,94.63034005,176.78,176.77,0.03]
[1752868720450,60.64034005,176.78,176.77,0.03]
[1752868722678,20.98682206,176.78,176.77,0.03]
[1752868722846,57.40468397,176.78,176.77,0.03]
[1752868723445,57.40468397,176.78,176.77,0.7]
[1752868725781,57.40468397,176.78,176.77,0.03]
[1752868726390,65.41145346,176.78,176.77,0.03]
[1752868726685,71.06820196,176.78,176.77,0.03]
[1752868728251,75.26346573,176.78,176.77,0.03]
[1752868730169,81.54326573,176.78,176.77,0.03]
[1752868730751,81.54326573,176.78,176.76,0.03]
[1752868730752,16.78468397,176.77,176.76,0.03]
[1752868730980,69.58671723,176.77,176.76,0.03]
[1752868731988,75.24378573,176.77,176.76,0.03]
[1752868732501,67.23701624,176.77,176.76,0.03]
[1752868732787,74.52378573,176.77,176.76,0.03]
[1752868733260,70.32852196,176.77,176.76,0.03]
[1752868733467,71.04852196,176.77,176.76,0.03]
[1752868734973,75.24465779,176.77,176.76,0.03]
[1752868736118,75.24465779,176.77,176.74,0.03]
[1752868736119,1.5932,176.75,176.74,0.03]
[1752868736287,42.78468397,176.71,176.7,0.03]
[1752868736487,16.78468397,176.7,176.69,0.03]
[1752868736715,31.35822295,176.7,176.69,0.03]
[1752868736917,32.07822295,176.7,176.69,0.03]
[1752868737218,32.07822295,176.7,176.63,3.0]
[1752868737436,64.67145346,176.69,176.63,3.69]
[1752868737598,62.29691431,176.69,176.63,3.69]
[1752868737914,65.39145346,176.69,176.63,3.69]
[1752868738482,71.05108332,176.69,176.63,3.69]
[1752868738704,75.57568661,176.69,176.63,3.69]
[1752868738920,79.76561514,176.69,176.63,3.0]
[1752868739288,18.30548397,176.68,176.63,3.0]
[1752868739483,37.78895148,176.68,176.63,3.0]
[1752868739793,63.78895148,176.68,176.63,3.0]
[1752868740016,72.67822295,176.67,176.63,3.0]
[1752868740217,17.50468397,176.67,176.63,3.0]
[1752868740520,65.39145346,176.67,176.63,3.0]
[1752868740722,16.78468397,176.67,176.66,3.69]
[1752868740924,57.38468397,176.67,176.66,3.69]
[1752868741139,40.6,176.67,176.66,16.63733637]
[1752868741311,40.6,176.67,176.66,3.69]
[1752868741507,24.07145346,176.71,176.66,10.97676949]
[1752868741743,24.07145346,176.71,176.66,3.0]
[1752868741744,7.28676949,176.67,176.66,3.0]
[1752868741902,65.37145346,176.67,176.66,3.0]
[1752868742304,24.79145346,176.67,176.66,3.0]
[1752868742548,16.78468397,176.67,176.66,3.69]
[1752868742708,57.38468397,176.67,176.66,3.69]
[1752868742902,4.54261072,176.71,176.66,9.35059096]
[1752868743122,16.78468397,176.69,176.67,0.69]
[1752868743342,40.6,176.68,176.67,0.69]
[1752868743507,40.6,176.68,176.66,10.28676949]
[1752868743836,40.6,176.68,176.66,8.66046434]
[1752868744140,40.6,176.68,176.67,0.69]
[1752868744322,16.78468397,176.69,176.67,0.69]
[1752868744873,16.78468397,176.69,176.68,0.69]
[1752868745622,7.28676949,176.69,176.66,3.0]
[1752868745822,16.78468397,176.7,176.67,0.69]
[1752868746427,16.78468397,176.7,176.66,15.94709546]
[1752868746732,16.78468397,176.7,176.68,0.69]
[1752868746907,16.78468397,176.7,176.67,0.69]
[1752868746908,24.07145346,176.7,176.67,0.69]
[1752868747110,24.07145346,176.7,176.66,3.0]
[1752868747326,24.07145346,176.7,176.68,0.69]
[1752868747540,16.78468397,176.7,176.66,10.28676949]
[1752868747850,16.78468397,176.72,176.69,0.69]
[1752868748033,16.78468397,176.72,176.66,8.66058425]
[1752868748344,22.44271271,176.74,176.7,0.69]
[1752868748506,24.07145346,176.74,176.69,7.28676949]
[1752868748742,24.07145346,176.74,176.71,0.69]
[1752868748941,24.07145346,176.74,176.72,0.69]
[1752868749142,21.34665402,176.74,176.72,0.69]
[1752868749348,28.63342351,176.74,176.72,0.69]
[1752868750285,28.63342351,176.74,176.67,1.5559]
[1752868750286,16.78468397,176.74,176.73,0.69]
[1752868750488,0.03,176.75,176.73,0.69]
[1752868751363,0.03,176.75,176.74,0.69]
[1752868751539,0.03,176.75,176.74,7.97676949]
[1752868752441,0.03,176.75,176.74,0.69]
[1752868752867,0.03,176.75,176.72,0.69]
[1752868753065,0.03,176.75,176.73,0.69]
[1752868753367,0.03,176.75,176.73,7.97676949]
[1752868753744,0.03,176.75,176.74,0.69]
[1752868754287,0.03,176.75,176.74,13.63479823]
[1752868754446,0.03,176.75,176.74,0.69]
[1752868754651,0.03,176.75,176.74,7.97676949]
[1752868754967,0.03,176.75,176.74,0.69]
[1752868755268,0.03,176.75,176.74,7.97676949]
[1752868755770,0.03,176.75,176.74,0.69]
[1752868756159,0.03,176.75,176.72,7.98676949]
[1752868756364,0.03,176.75,176.74,0.7]
[1752868758454,0.03,176.75,176.72,0.7]
[1752868758767,0.03,176.75,176.7,5.65926748]
[1752868758768,24.10145346,176.75,176.71,0.7]
[1752868758957,24.77145346,176.75,176.71,0.7]
[1752868759360,0.03,176.75,176.72,0.7]
[1752868759594,0.03,176.75,176.73,0.7]
[1752868759925,0.03,176.75,176.73,7.98676949]
[1752868760248,0.03,176.75,176.72,5.65863026]
[1752868760249,0.03,176.75,176.74,0.7]
[1752868760866,0.03,176.75,176.69,31.65960152]
[1752868761072,0.03,176.75,176.73,7.98676949]
[1752868761272,0.03,176.75,176.73,0.7]
[1752868761472,0.03,176.75,176.74,0.7]
[1752868761854,0.03,176.75,176.74,7.98676949]
[1752868762071,0.03,176.75,176.74,15.25959823]
[1752868762275,0.03,176.75,176.74,7.97282874]
[1752868762454,0.03,176.75,176.74,15.25959823]
[1752868762770,0.03,176.79,176.74,15.25959823]
[1752868762771,0.03,176.79,176.77,26.0]
[1752868762971,0.03,176.79,176.78,33.28676949]
[1752868763194,0.06,176.8,176.78,33.28676949]
[1752868763351,0.03,176.83,176.76,7.28676949]
[1752868763352,0.03,176.83,176.82,7.28676949]
[1752868763552,0.06,176.84,176.82,7.28676949]
[1752868763755,0.06,176.84,176.83,13.6419185]
[1752868764282,0.06,176.84,176.83,6.35514901]
[1752868764489,0.06,176.84,176.83,13.6419185]
[1752868764658,0.06,176.84,176.83,54.2419185]
[1752868764860,0.06,176.84,176.83,61.52868799]
[1752868765060,0.06,176.85,176.83,46.95514901]
[1752868765299,0.06,176.85,176.84,26.7]
[1752868768395,0.06,176.87,176.86,33.28676949]
[1752868768560,0.06,176.87,176.86,80.24095924]
[1752868769667,0.06,176.87,176.86,72.95418975]
[1752868769868,0.1,176.93,176.86,54.24095924]
[1752868770061,0.1,176.93,176.92,7.28676949]
[1752868770266,0.1,176.93,176.92,47.96676949]
[1752868770460,0.1,176.93,176.92,48.66676949]
[1752868770760,0.1,176.93,176.92,74.66676949]
[1752868770965,0.03,176.95,176.94,26.0]
[1752868771179,0.1,176.98,176.94,37.79521889]
[1752868771488,0.1,176.98,176.97,11.79521889]
[1752868772167,0.1,176.98,176.97,18.14589414]
[1752868772356,0.1,176.98,176.95,26.0]
[1752868772559,0.1,176.98,176.97,11.79521889]
[1752868772977,16.78468397,176.97,176.92,0.7]
[1752868773181,17.45468397,176.97,176.94,11.79521889]
[1752868773375,0.1,176.98,176.91,26.0]
[1752868773376,0.1,176.98,176.96,11.79521889]
[1752868773569,0.1,176.98,176.97,11.79521889]
[1752868773885,0.1,176.98,176.92,5.65227221]
[1752868774087,16.78468397,176.96,176.88,0.7]
[1752868774288,0.67,176.95,176.92,11.79521889]
[1752868774582,0.1,176.98,176.94,11.79521889]
[1752868774756,0.1,176.98,176.97,11.79521889]
[1752868775380,16.78468397,176.97,176.91,40.72]
[1752868775586,16.78468397,176.95,176.91,40.72]
[1752868775883,0.67,176.97,176.94,11.79521889]
[1752868776086,0.1,176.98,176.95,11.79521889]
[1752868776284,0.1,176.98,176.93,40.74]
[1752868776491,16.78468397,176.96,176.9,6.35261548]
[1752868776788,16.78468397,176.94,176.93,11.79521889]
[1752868777087,17.45468397,176.97,176.93,11.79521889]
[1752868777384,0.67,176.96,176.95,11.79521889]
[1752868777583,0.1,176.98,176.95,11.79521889]
[1752868777785,0.1,176.98,176.97,11.79521889]
[1752868778187,0.1,176.98,176.95,0.7]
[1752868778786,0.1,176.98,176.97,11.79521889]
[1752868780689,16.78468397,176.97,176.91,0.7]
[1752868780880,16.78468397,176.97,176.91,41.48]
[1752868781065,16.78468397,176.97,176.94,11.79521889]
[1752868781270,16.78468397,176.97,176.91,41.48]
[1752868781469,0.77,176.98,176.96,11.79521889]
[1752868781680,0.1,176.98,176.97,11.79521889]
[1752868783402,0.1,176.98,176.97,18.14589414]
[1752868785698,16.78468397,177.07,176.97,84.82780116]
[1752868785992,16.78468397,177.07,177.06,11.79521889]
[1752868786203,21.61577535,177.07,177.05,11.79521889]
[1752868786410,16.78468397,177.08,177.06,11.79521889]
[1752868786578,2.80200533,177.08,177.07,11.79521889]
[1752868786779,6.4438,177.15,177.07,17.44270293]
[1752868787008,4.82925196,177.14,177.07,6.30748404]
[1752868787203,20.92393593,177.13,177.12,11.79521889]
[1752868787411,17.47468397,177.13,177.07,6.30748404]
[1752868787788,2.76218245,177.13,177.12,11.79521889]
[1752868788103,0.1,177.16,177.12,12.45521889]
[1752868788304,0.1,177.16,177.15,11.79521889]
[1752868788684,0.1,177.16,177.15,12.45521889]
[1752868789079,0.1,177.16,177.15,11.79521889]
[1752868789699,0.1,177.16,177.1,0.66]
[1752868789891,16.78468397,177.14,177.11,11.79521889]
[1752868790082,0.69,177.14,177.13,11.79521889]
[1752868790282,0.69,177.14,177.12,11.79521889]
[1752868790585,0.69,177.14,177.11,11.79521889]
[1752868790788,16.88468397,177.16,177.13,11.79521889]
[1752868790998,0.1,177.16,177.15,11.79521889]
[1752868791602,2.94542762,177.16,177.15,11.79521889]
[1752868791781,0.1,177.16,177.15,12.45521889]
[1752868792192,0.1,177.16,177.15,11.79521889]
[1752868793390,0.1,177.16,177.13,0.66]
[1752868793697,0.1,177.16,177.14,0.66]
[1752868794007,0.1,177.16,177.11,5.64620857]
[1752868794190,0.1,177.16,177.15,11.79521889]
[1752868795392,0.1,177.16,177.15,12.45521889]
[1752868796109,0.1,177.16,177.15,18.10015256]
[1752868797291,0.1,177.16,177.15,6.30493367]
[1752868797498,0.1,177.16,177.15,18.10015256]
[1752868798006,0.0256625,177.16,177.12,0.66]
[1752868798209,0.0256625,177.16,177.15,11.79521889]
[1752868798411,0.0256625,177.16,177.13,0.66]
[1752868798613,0.0256625,177.16,177.15,11.79521889]
[1752868798907,17.47468397,177.15,177.12,11.79521889]
[1752868799091,16.78468397,177.13,177.12,11.79521889]
[1752868799292,16.78468397,177.13,177.11,11.79521889]
[1752868799500,5.64503457,177.15,177.09,11.79521889]
[1752868799501,0.69,177.12,177.09,11.79521889]
[1752868799693,16.78468397,177.11,177.09,11.79521889]
[1752868800006,0.69,177.13,177.1,11.79521889]
[1752868800404,0.54132501,177.13,177.09,11.79521889]
[1752868800903,16.78468397,177.11,177.03,0.66]
[1752868801094,4.13174246,177.1,177.07,11.79521889]
[1752868801292,22.43048351,177.13,177.09,12.10641889]
[1752868801613,16.78468397,177.11,177.09,0.3112]
[1752868801907,16.78468397,177.11,177.09,0.6293]
[1752868802112,16.78468397,177.11,177.09,1.2893]
[1752868802315,16.78468397,177.11,177.09,0.6293]
[1752868802828,16.62279446,177.1,177.09,0.6293]
[1752868803008,33.40747843,177.1,177.09,0.6293]
[1752868803188,74.40747843,177.1,177.09,0.6293]
[1752868803389,20.92225954,177.1,177.09,0.6293]
[1752868803594,4.13757557,177.1,177.09,0.6293]
[1752868803795,16.78468397,177.11,177.09,0.6293]
[1752868804191,41.02,177.12,177.1,12.45521889]
[1752868804411,41.02,177.12,177.11,11.79521889]
[1752868804613,4.14671206,177.12,177.11,12.45521889]
[1752868805290,16.78468397,177.15,177.11,12.45521889]
[1752868805617,4.15065066,177.14,177.13,11.79521889]
[1752868805815,4.84065066,177.14,177.09,0.6293]
[1752868806009,4.84065066,177.13,177.09,18.07134831]
[1752868806207,20.93533463,177.12,177.11,11.79521889]
[1752868806403,4.15065066,177.12,177.11,11.79521889]
[1752868806716,16.78468397,177.11,177.09,0.6293]
[1752868806913,33.42055352,177.1,177.09,0.6293]
[1752868807611,21.62533463,177.1,177.09,0.6293]
[1752868807812,33.42055352,177.1,177.09,0.6293]
[1752868808018,20.93533463,177.1,177.09,0.6293]
[1752868809104,39.0670809,177.1,177.09,0.6293]
[1752868810192,16.78468397,177.09,177.02,12.45521889]
[1752868810412,28.57990286,177.07,177.02,12.45521889]
[1752868810709,4.15065066,177.06,177.02,12.45521889]
[1752868811021,4.15065066,177.05,177.03,0.66]
[1752868811210,4.15065066,177.04,177.03,11.79521889]
[1752868811411,4.15065066,177.04,177.02,5.64900355]
[1752868811593,4.15065066,177.03,177.02,5.64900355]
[1752868812122,4.15065066,177.03,177.0,5.64971751]
[1752868812305,4.15065066,177.02,177.01,0.66]
[1752868812504,4.15065066,177.02,177.01,6.30939833]
[1752868812723,4.15065066,177.02,177.01,18.10461722]
[1752868813816,4.15065066,177.02,176.99,0.66]
[1752868814018,4.15065066,177.01,176.99,12.45521889]
[1752868814192,4.15065066,177.0,176.99,0.66]
[1752868814398,4.15065066,177.0,176.99,12.45521889]
[1752868814837,4.15065066,177.0,176.99,18.10525561]
[1752868815516,4.15065066,177.0,176.99,12.45521889]
[1752868815900,4.15065066,177.0,176.98,0.03]
[1752868816108,4.17582252,176.99,176.98,0.03]
[1752868816899,4.17582252,176.99,176.98,12.48521889]
[1752868817298,41.18,177.03,176.98,12.48521889]
[1752868817598,4.17826187,177.02,177.01,11.79521889]
[1752868817897,41.18,177.03,176.99,0.66]
[1752868818226,41.18,177.03,177.0,0.66]
[1752868818407,41.18,177.03,177.01,11.79521889]
[1752868819198,16.78468397,177.04,177.01,11.79521889]
[1752868819397,46.08,177.06,177.03,11.79521889]
[1752868819594,46.08,177.06,177.04,11.79521889]
[1752868819798,46.08,177.06,177.03,0.66]
[1752868820332,41.18,177.06,177.03,12.45521889]
[1752868820623,41.18,177.06,177.01,0.66]
[1752868820801,41.18,177.06,177.03,12.45521889]
[1752868821004,21.68468397,177.08,177.05,11.79521889]
[1752868821209,16.78468397,177.08,177.05,11.79521889]
[1752868821809,16.78468397,177.08,177.06,12.45521889]
[1752868822015,17.49468397,177.12,177.07,12.45521889]
[1752868822224,0.06,177.13,177.1,11.79521889]
[1752868822430,16.78468397,177.1,177.06,11.79521889]
[1752868822618,17.49468397,177.1,177.06,11.79521889]
[1752868822923,16.78468397,177.1,177.07,11.79521889]
[1752868823126,41.18,177.12,177.08,12.45521889]
[1752868823301,41.18,177.12,177.09,12.45521889]
[1752868823706,41.18,177.12,177.1,11.79521889]
[1752868824119,41.18,177.12,177.09,12.45521889]
[1752868824847,11.79521889,177.1,177.05,11.79521889]
[1752868825016,28.57990286,177.07,177.03,26.0]
[1752868825219,29.28990286,177.07,177.03,26.0]
[1752868825617,11.79521889,177.06,177.0,0.66]
[1752868825820,11.79521889,177.06,177.01,26.0]
[1752868826039,11.79521889,177.06,177.02,11.79521889]
[1752868826420,11.79521889,177.06,177.02,12.45521889]
[1752868827136,16.78468397,177.07,177.03,12.45521889]
[1752868827639,16.78468397,177.07,177.04,0.66]
[1752868828139,16.78468397,177.07,177.05,0.66]
[1752868828322,16.78468397,177.11,177.06,12.45521889]
[1752868828525,57.94468397,177.11,177.07,11.79521889]
[1752868828828,57.94468397,177.11,177.07,12.45521889]
[1752868829022,57.94468397,177.11,177.08,11.79521889]
[1752868829333,57.94468397,177.11,177.09,11.79521889]
[1752868829334,41.16,177.11,177.09,11.79521889]
[1752868829519,16.84468397,177.13,177.1,11.79521889]
[1752868830932,16.84468397,177.13,177.09,6.30676924]
[1752868831128,16.84468397,177.13,177.1,11.79521889]
[1752868831335,23.20025981,177.13,177.09,11.79521889]
[1752868831656,17.55468397,177.13,177.09,11.79521889]
[1752868832025,16.84468397,177.13,177.09,12.45521889]
[1752868832224,16.84468397,177.13,177.1,11.79521889]
[1752868832523,16.84468397,177.13,177.1,0.66]
[1752868832725,0.71,177.12,177.08,11.79521889]
[1752868832947,22.49027981,177.13,177.09,11.79521889]
[1752868834043,16.84468397,177.13,177.1,12.45521889]
[1752868834419,0.06,177.13,177.11,11.79521889]
[1752868834617,0.06,177.13,177.11,12.45521889]
[1752868834847,0.06,177.13,177.12,11.79521889]
[1752868835145,0.06,177.13,177.12,18.10110868]
[1752868840419,1e-08,177.13,177.12,26.05590868]
[1752868840627,1e-08,177.13,177.12,67.05590868]
[1752868840824,1e-08,177.13,177.12,26.05590868]
[1752868841031,1e-08,177.13,177.12,18.10110868]
[1752868841632,1e-08,177.13,177.12,17.44110868]
[1752868842757,1e-08,177.13,177.12,18.10110868]
[1752868847169,1e-08,177.13,177.12,6.30588979]
[1752868847375,1e-08,177.13,177.12,18.10110868]
[1752868847766,1e-08,177.13,177.12,17.44110868]
[1752868848666,1e-08,177.13,177.12,18.12110868]
[1752868852349,1e-08,177.13,177.12,17.44110868]
[1752868853373,1e-08,177.13,177.12,18.12110868]
[1752868855862,1e-08,177.13,177.12,5.64588979]
[1752868856062,1e-08,177.13,177.12,18.12110868]
[1752868859871,1e-08,177.13,177.12,18.15110868]
[1752868860501,1e-08,177.13,177.12,58.97110868]
[1752868861596,0.0256625,177.16,177.12,73.08583316]
[1752868861797,0.06,177.17,177.15,37.79521889]
[1752868861977,0.06,177.21,177.2,11.79521889]
[1752868862177,0.06,177.21,177.2,52.57521889]
[1752868862386,0.06,177.21,177.2,12.47521889]
[1752868862696,0.06,177.21,177.2,58.91855974]
[1752868863572,0.06,177.21,177.2,47.12334085]
[1752868863896,0.00293991,177.21,177.2,17.43855974]
[1752868864090,0.00293991,177.21,177.2,58.27855974]
[1752868864284,0.00293991,177.21,177.2,17.43855974]
[1752868864483,0.00293991,177.21,177.2,52.63521889]
[1752868864886,12.4581588,177.21,177.13,17.44078993]
[1752868865084,11.79521889,177.18,177.14,40.86]
[1752868865291,0.66,177.18,177.14,52.65521889]
[1752868865469,12.45521889,177.2,177.15,11.79521889]
[1752868865788,0.00293991,177.21,177.18,11.79521889]
[1752868866092,0.00293991,177.21,177.18,12.47521889]
[1752868866681,0.66,177.2,177.13,32.32557104]
[1752868866886,11.79521889,177.19,177.13,32.32557104]
[1752868867100,0.66,177.18,177.13,31.64557104]
[1752868867277,12.45521889,177.17,177.16,26.0]
[1752868868185,0.66,177.17,177.14,40.84]
[1752868868402,12.45521889,177.17,177.14,40.84]
[1752868868578,0.66,177.19,177.14,40.84]
[1752868868891,11.79521889,177.17,177.14,40.84]
[1752868869300,12.45521889,177.17,177.14,40.84]
[1752868870196,12.45521889,177.17,177.13,84.28076747]
[1752868870391,0.66,177.17,177.13,84.28076747]
[1752868870786,12.45521889,177.17,177.13,84.28076747]
[1752868870977,0.66,177.17,177.13,84.28076747]
[1752868871179,0.66,177.17,177.13,84.96076747]
[1752868871379,0.66,177.19,177.14,11.79521889]
[1752868871579,11.79521889,177.18,177.14,11.79521889]
[1752868872471,11.79521889,177.19,177.14,17.44032266]
[1752868872679,16.78762388,177.21,177.17,11.79521889]
[1752868872680,11.7981588,177.21,177.17,11.79521889]
[1752868872991,0.00293991,177.21,177.18,12.47521889]
[1752868873171,0.00293991,177.21,177.19,11.79521889]
[1752868873767,0.00293991,177.21,177.18,12.47521889]
[1752868874180,0.00293991,177.21,177.18,11.79521889]
[1752868874480,0.00293991,177.21,177.17,46.44402537]
[1752868874796,0.00293991,177.21,177.18,11.79521889]
[1752868875380,0.00293991,177.21,177.19,12.47521889]
[1752868875798,11.79521889,177.2,177.15,11.79521889]
[1752868876003,11.79521889,177.18,177.15,40.78]
[1752868876174,12.50521889,177.19,177.15,40.78]
[1752868876615,11.79521889,177.19,177.15,58.88996008]
[1752868876974,11.79521889,177.19,177.15,11.79521889]
[1752868877182,11.79521889,177.19,177.14,84.18036117]
[1752868877183,12.50521889,177.19,177.14,84.18036117]
[1752868877401,11.79521889,177.17,177.14,26.0]
[1752868877575,5.64334085,177.2,177.12,0.7]
[1752868877576,11.79521889,177.15,177.12,0.03]
[1752868878100,0.71,177.15,177.12,11.82521889]
[1752868878283,0.71,177.15,177.12,0.03]
[1752868878674,0.71,177.15,177.12,5.67584003]
[1752868879481,11.79521889,177.16,177.12,5.67584003]
[1752868879682,12.50521889,177.17,177.12,18.14105892]
[1752868879900,11.79521889,177.17,177.12,18.14105892]
[1752868880200,11.79521889,177.15,177.12,0.03]
[1752868880505,11.79521889,177.13,177.12,0.03]
[1752868880881,12.50521889,177.13,177.12,0.03]
[1752868881675,28.57990286,177.15,177.12,0.03]
[1752868882095,0.71,177.14,177.12,0.03]
[1752868882295,12.50521889,177.14,177.12,0.03]
[1752868882604,0.71,177.13,177.12,0.03]
[1752868882904,12.50521889,177.13,177.12,0.03]
[1752868883607,0.71,177.13,177.12,0.03]
[1752868884609,12.50521889,177.13,177.12,0.03]
[1752868885292,41.2890739,177.13,177.12,0.03]
[1752868887682,42.8219739,177.13,177.12,0.03]
[1752868888511,16.78468397,177.12,177.11,0.03]
[1752868888680,69.94990286,177.12,177.11,0.03]
[1752868889109,58.15468397,177.12,177.11,0.03]
[1752868889420,69.94990286,177.12,177.11,0.03]
[1752868889788,75.59579265,177.12,177.11,0.03]
[1752868891202,75.59579265,177.12,177.09,0.03]
[1752868891203,66.37512175,177.1,177.09,0.03]
[1752868891588,55.28990286,177.1,177.09,0.03]
[1752868892983,49.14121135,177.1,177.09,0.03]
[1752868893183,52.47521889,177.1,177.09,0.03]
[1752868893416,40.68,177.1,177.09,0.7]
[1752868893622,16.78468397,177.13,177.09,12.49521889]
[1752868893812,40.7,177.14,177.11,11.79521889]
[1752868894111,40.7,177.16,177.13,11.79521889]
[1752868895280,40.7,177.16,177.12,12.46521889]
[1752868896211,58.1398377,177.16,177.09,0.7]
[1752868896387,29.28990286,177.15,177.1,11.79521889]
[1752868896590,29.28990286,177.15,177.1,12.46521889]
[1752868896805,16.78468397,177.15,177.11,12.46521889]
[1752868897907,16.78468397,177.15,177.11,0.67]
[1752868898115,23.13966671,177.15,177.11,12.46521889]
[1752868898308,12.50521889,177.14,177.09,26.03]
[1752868898511,22.42966671,177.15,177.09,26.03]
[1752868898512,11.79521889,177.12,177.09,0.03]
[1752868898916,12.50521889,177.12,177.09,0.03]
[1752868899126,4.9,177.11,177.09,11.82521889]
[1752868899326,4.9,177.11,177.1,12.46521889]
[1752868900000,4.9,177.11,177.1,18.11174627]
[1752868904205,4.9,177.11,177.1,6.31652738]
[1752868904520,4.9,177.11,177.1,18.11174627]
[1752868904825,4.9,177.11,177.1,11.79521889]
[1752868905006,4.9,177.14,177.1,11.79521889]
[1752868905208,0.71,177.13,177.09,43.47200047]
[1752868905527,0.71,177.12,177.09,0.03]
[1752868905834,12.50521889,177.12,177.09,0.03]
[1752868906128,0.71,177.12,177.09,0.03]
[1752868906713,11.79521889,177.13,177.09,0.03]
[1752868907242,45.72,177.14,177.1,12.45521889]